fUSD/lending_fUSD_20240331
["ID","MTS","AMOUNT","RATE_DAILY","PERIOD"]
[321114216,1711900314374,-500.0,0.0005589,120]
[321114217,1711900314384,-500.0,0.0005589,120]
[321114218,1711900314393,-500.0,0.0005589,120]
[321114219,1711900314402,-500.0,0.0005589,120]
[321114220,1711900314411,-500.0,0.0005589,120]
[321114221,1711900314420,-500.0,0.0005589,120]
[321114222,1711900314430,-500.0,0.0005589,120]
[321114223,1711900314440,-500.0,0.0005589,120]
[321114224,1711900314449,-500.0,0.0005589,120]
[321114225,1711900314458,-500.0,0.0005589,120]
[321114226,1711900314468,-500.0,0.0005589,120]
[321114227,1711900314477,-500.0,0.0005589,120]
[321114228,1711900314486,-515.94,0.0005589,120]
[321114229,1711900314496,-500.0,0.0005589,120]
[321114230,1711900314505,-500.0,0.0005589,120]
[321114231,1711900314514,-500.0,0.0005589,120]
[321114232,1711900314522,-500.0,0.0005589,120]
[321114233,1711900314533,-500.0,0.0005589,120]
[321114234,1711900314541,-500.0,0.0005589,120]
[321114235,1711900314550,-500.0,0.0005589,120]
[321114236,1711900314559,-500.0,0.0005589,120]
[321114237,1711900314569,-500.0,0.0005589,120]
[321114238,1711900314578,-500.0,0.0005589,120]
[321114239,1711900314587,-500.0,0.0005589,120]
[321114240,1711900314596,-500.0,0.0005589,120]
[321114241,1711900314605,-500.0,0.0005589,120]
[321114242,1711900314614,-500.0,0.0005589,120]
[321114243,1711900314623,-500.0,0.0005589,120]
[321114244,1711900314632,-500.0,0.0005589,120]
[321114245,1711900314643,-430.85792742,0.0005589,120]
[321114246,1711900314652,-500.0,0.0005589,120]
[321114247,1711900314661,-500.0,0.0005589,120]
[321114248,1711900314670,-500.0,0.0005589,120]
[321114249,1711900314679,-500.0,0.0005589,120]
[321114250,1711900314688,-517.43886717,0.0005589,120]
[321114251,1711900314698,-500.0,0.0005589,120]
[321114252,1711900314707,-500.0,0.0005589,120]
[321114253,1711900314717,-500.0,0.0005589,120]
[321114254,1711900314727,-500.0,0.0005589,120]
[321114255,1711900314736,-500.0,0.0005589,120]
[321114256,1711900314746,-500.0,0.0005589,120]
[321114257,1711900314755,-500.0,0.0005589,120]
[321114258,1711900314764,-512.88098747,0.0005589,120]
[321114259,1711900314773,-500.0,0.0005589,120]
[321114260,1711900314783,-500.0,0.0005589,120]
[321114261,1711900314792,-500.0,0.0005589,120]
[321114262,1711900314801,-1476.31,0.0005589,120]
[321114263,1711900314810,-500.0,0.0005589,120]
[321114264,1711900314819,-500.0,0.0005589,120]
[321114265,1711900314829,-500.0,0.0005589,120]
[321114266,1711900314839,-267.88,0.0005589,120]
[321114267,1711900314848,-186.3242355,0.0005589,120]
[321114268,1711900314858,-500.0,0.0005589,120]
[321114269,1711900314868,-429.46024047,0.0005589,120]
[321114270,1711900314877,-530.53473626,0.0005589,120]
[321114271,1711900314887,-500.0,0.0005589,120]
[321114272,1711900314896,-500.0,0.0005589,120]
[321114273,1711900314905,-536.73,0.0005589,120]
[321114274,1711900314915,-500.0,0.0005589,120]
[321114275,1711900314924,-488.25695094,0.0005589,120]
[321114276,1711900314934,-794.23,0.0005589,120]
[321114277,1711900314943,-500.0,0.0005589,120]
[321114278,1711900314953,-500.0,0.0005589,120]
[321114279,1711900314962,-500.0,0.0005589,120]
[321114280,1711900314972,-500.0,0.0005589,120]
[321114281,1711900314982,-500.0,0.0005589,60]
[321114282,1711900314992,-500.0,0.0005589,120]
[321114283,1711900315002,-500.0,0.0005589,120]
[321114284,1711900315011,-500.0,0.0005589,120]
[321114285,1711900315020,-500.0,0.0005589,120]
[321114286,1711900315030,-500.0,0.0005589,120]
[321114287,1711900315039,-726.96,0.0005589,120]
[321114288,1711900315049,-500.0,0.0005589,50]
[321114289,1711900315058,-500.0,0.0005589,120]
[321114290,1711900315070,-500.0,0.0005589,120]
[321114291,1711900315079,-500.0,0.0005589,120]
[321114292,1711900315089,-500.0,0.0005589,120]
[321114293,1711900315098,-289.81377455,0.0005589,120]
[321114294,1711900315108,-216.14600691,0.0005589,120]
[321114295,1711900315118,-753.06,0.0005589,120]
[321114296,1711900315127,-500.0,0.0005589,120]
[321114297,1711900315137,-500.0,0.0005589,120]
[321114298,1711900315146,-741.95,0.0005589,120]
[321114299,1711900315155,-500.0,0.0005589,120]
[321114300,1711900315165,-500.0,0.0005589,120]
[321114301,1711900315175,-500.0,0.0005589,120]
[321114302,1711900315184,-500.0,0.0005589,120]
[321114303,1711900315194,-500.0,0.0005589,120]
[321114304,1711900315204,-500.0,0.0005589,120]
[321114305,1711900315213,-500.0,0.0005589,120]
[321114306,1711900315223,-500.0,0.0005589,120]
[321114307,1711900315232,-500.0,0.0005589,120]
[321114308,1711900315242,-500.0,0.0005589,120]
[321114309,1711900315251,-500.0,0.0005589,120]
[321114310,1711900315262,-500.0,0.0005589,120]
[321114311,1711900315276,-500.0,0.0005589,120]
[321114312,1711900315286,-500.0,0.0005589,120]
[321114313,1711900315295,-500.0,0.0005589,120]
[321114314,1711900315305,-500.0,0.0005589,120]
[321114315,1711900315315,-513.66036548,0.0005589,120]
[321114316,1711900315324,-796.42,0.0005589,120]
[321114317,1711900315333,-500.0,0.0005589,120]
[321114318,1711900315345,-887.89,0.0005589,120]
[321114319,1711900315357,-500.0,0.0005589,120]
[321114320,1711900315367,-556.88,0.0005589,120]
[321114321,1711900315376,-646.48,0.0005589,120]
[321114322,1711900315386,-500.0,0.0005589,120]
[321114323,1711900315394,-500.0,0.0005589,120]
[321114324,1711900315404,-500.0,0.0005589,120]
[321114325,1711900315413,-500.0,0.0005589,120]
[321114326,1711900315422,-500.0,0.0005589,120]
[321114327,1711900315432,-1000.0,0.0005589,120]
[321114328,1711900315441,-510.99,0.0005589,120]
[321114329,1711900315451,-500.0,0.0005589,120]
[321114330,1711900315460,-500.0,0.0005589,120]
[321114331,1711900315469,-849.94,0.0005589,120]
[321114332,1711900315643,-500.0,0.0005589,120]
[321114333,1711900315653,-500.0,0.0005589,120]
[321114334,1711900315662,-500.0,0.0005589,120]
[321114335,1711900315672,-500.0,0.0005589,120]
[321114336,1711900315681,-500.0,0.0005589,120]
[321114337,1711900315690,-799.12,0.0005589,120]
[321114338,1711900315700,-500.0,0.0005589,120]
[321114339,1711900315709,-500.0,0.0005589,120]
[321114340,1711900315718,-500.0,0.0005589,120]
[321114341,1711900315727,-500.0,0.0005589,120]
[321114342,1711900315737,-500.0,0.0005589,120]
[321114343,1711900315747,-500.0,0.0005589,120]
[321114344,1711900315756,-500.0,0.0005589,120]
[321114345,1711900315765,-500.0,0.0005589,120]
[321114346,1711900315775,-500.0,0.0005589,120]
[321114347,1711900315785,-500.0,0.0005589,120]
[321114348,1711900315794,-500.0,0.0005589,120]
[321114349,1711900315804,-500.0,0.0005589,120]
[321114350,1711900315814,-500.0,0.0005589,120]
[321114351,1711900315823,-500.0,0.0005589,120]
[321114352,1711900315833,-490.03494957,0.0005589,120]
[321114353,1711900315842,-883.96,0.0005589,120]
[321114354,1711900315851,-500.0,0.0005589,120]
[321114355,1711900315861,-500.0,0.0005589,120]
[321114356,1711900315870,-815.7,0.0005589,120]
[321114357,1711900315880,-505.80437328,0.0005589,120]
[321114358,1711900315890,-500.0,0.0005589,120]
[321114359,1711900315899,-804.07,0.0005589,120]
[321114360,1711900315909,-635.28,0.0005589,120]
[321114361,1711900315919,-500.0,0.0005589,120]
[321114362,1711900315929,-500.0,0.0005589,120]
[321114363,1711900315938,-500.0,0.0005589,120]
[321114364,1711900315947,-500.0,0.0005589,120]
[321114365,1711900315957,-959.19,0.0005589,120]
[321114366,1711900315966,-683.74,0.0005589,120]
[321114367,1711900315976,-500.0,0.0005589,120]
[321114368,1711900315986,-500.0,0.0005589,120]
[321114369,1711900315995,-1061.5,0.0005589,120]
[321114370,1711900316004,-736.85,0.0005589,120]
[321114371,1711900316013,-500.0,0.0005589,120]
[321114372,1711900316023,-500.0,0.0005589,120]
[321114373,1711900316032,-500.0,0.0005589,120]
[321114374,1711900316042,-500.0,0.0005589,120]
[321114375,1711900316052,-500.0,0.0005589,120]
[321114376,1711900316061,-592.16,0.0005589,120]
[321114377,1711900316070,-500.0,0.0005589,120]
[321114378,1711900316080,-500.0,0.0005589,120]
[321114379,1711900316089,-500.0,0.0005589,120]
[321114380,1711900316099,-571.87,0.0005589,120]
[321114381,1711900316108,-500.0,0.0005589,16]
[321114382,1711900316118,-781.99,0.0005589,120]
[321114383,1711900316128,-500.0,0.0005589,120]
[321114384,1711900316137,-828.46,0.0005589,120]
[321114385,1711900316146,-500.0,0.0005589,120]
[321114386,1711900316156,-500.0,0.0005589,120]
[321114387,1711900316165,-500.0,0.0005589,120]
[321114388,1711900316174,-500.0,0.0005589,120]
[321114389,1711900316185,-500.0,0.0005589,120]
[321114390,1711900316194,-500.0,0.0005589,120]
[321114391,1711900316203,-500.0,0.0005589,120]
[321114392,1711900316213,-519.19,0.0005589,120]
[321114393,1711900316223,-680.37,0.0005589,120]
[321114394,1711900316233,-500.0,0.0005589,120]
[321114395,1711900316243,-735.71,0.0005589,120]
[321114396,1711900316252,-500.0,0.0005589,120]
[321114397,1711900316262,-500.0,0.0005589,120]
[321114398,1711900316275,-500.0,0.0005589,120]
[321114399,1711900316286,-648.33,0.0005589,120]
[321114400,1711900316295,-500.0,0.0005589,2]
[321114401,1711900316306,-500.0,0.0005589,120]
[321114402,1711900316315,-500.0,0.0005589,120]
[321114403,1711900316325,-500.0,0.0005589,120]
[321114404,1711900316334,-500.0,0.0005589,120]
[321114405,1711900316343,-680.7,0.0005589,120]
[321114406,1711900316355,-500.0,0.0005589,120]
[321114407,1711900316365,-192.89413349,0.0005589,120]
[321114408,1711900316374,-500.0,0.0005589,120]
[321114409,1711900316383,-500.0,0.0005589,120]
[321114410,1711900316392,-1067.63,0.0005589,120]
[321114411,1711900316401,-617.46,0.0005589,120]
[321114412,1711900316411,-500.0,0.0005589,120]
[321114413,1711900316420,-549.24970226,0.0005589,120]
[321114414,1711900316429,-500.0,0.0005589,120]
[321114415,1711900316439,-500.0,0.0005589,120]
[321114416,1711900316448,-500.0,0.0005589,120]
[321114417,1711900316458,-615.17,0.0005589,120]
[321114418,1711900316467,-500.0,0.0005589,120]
[321114419,1711900316476,-753.46,0.0005589,120]
[321114420,1711900316485,-671.0,0.0005589,120]
[321114421,1711900316495,-742.98,0.0005589,120]
[321114422,1711900316505,-500.0,0.0005589,120]
[321114423,1711900316515,-579.39,0.0005589,120]
[321114424,1711900316524,-500.0,0.0005589,120]
[321114425,1711900316534,-759.51,0.0005589,120]
[321114426,1711900316543,-500.0,0.0005589,120]
[321114427,1711900316552,-169.624388,0.0005589,120]
[321114428,1711900316561,-500.0,0.0005589,120]
[321114429,1711900316570,-507.57072457,0.0005589,120]
[321114430,1711900316579,-169.624388,0.0005589,120]
[321114431,1711900316588,-307.543145,0.0005589,120]
[321114432,1711900316597,-500.0,0.0005589,120]
[321114433,1711900316607,-500.0,0.0005589,120]
[321114434,1711900316616,-500.0,0.0005589,120]
[321114435,1711900316625,-307.543145,0.0005589,120]
[321114436,1711900316634,-500.0,0.0005589,7]
[321114437,1711900316643,-500.0,0.0005589,120]
[321114438,1711900316652,-500.0,0.0005589,120]
[321114439,1711900316662,-500.0,0.0005589,120]
[321114440,1711900316671,-730.83,0.0005589,30]
[321114441,1711900316680,-562.36,0.0005589,120]
[321114442,1711900316689,-500.0,0.0005589,120]
[321114443,1711900316698,-151.0,0.0005589,120]
[321114444,1711900316708,-500.0,0.0005589,120]
[321114445,1711900316717,-500.0,0.0005589,120]
[321114446,1711900316726,-500.0,0.0005589,120]
[321114447,1711900316735,-591.57,0.0005589,120]
[321114448,1711900316744,-151.0,0.0005589,120]
[321114449,1711900316754,-500.0,0.0005589,120]
[321114450,1711900316763,-754.29,0.0005589,120]
[321114451,1711900316772,-500.0,0.0005589,120]
[321114452,1711900316781,-500.0,0.0005589,120]
[321114453,1711900316791,-544.56,0.0005589,120]
[321114454,1711900316800,-445.0686905,0.0005589,120]
[321114455,1711900316809,-500.0,0.0005589,120]
[321114456,1711900316818,-563.24,0.0005589,120]
[321114457,1711900316827,-500.0,0.0005589,120]
[321114458,1711900316837,-151.0,0.0005589,120]
[321114459,1711900316846,-500.0,0.0005589,120]
[321114460,1711900316856,-500.0,0.0005589,120]
[321114461,1711900316865,-500.0,0.0005589,120]
[321114462,1711900316874,-662.41,0.0005589,120]
[321114463,1711900316885,-995.44,0.0005589,120]
[321114464,1711900316895,-500.0,0.0005589,120]
[321114465,1711900316904,-500.0,0.0005589,120]
[321114466,1711900316913,-500.0,0.0005589,120]
[321114467,1711900316922,-500.0,0.0005589,120]
[321114468,1711900316931,-500.0,0.0005589,120]
[321114469,1711900316942,-151.0,0.0005589,120]
[321114470,1711900316952,-500.0,0.0005589,120]
[321114471,1711900316961,-500.0,0.0005589,120]
[321114472,1711900316971,-629.64,0.0005589,120]
[321114473,1711900316980,-500.0,0.0005589,120]
[321114474,1711900316990,-151.0,0.0005589,120]
[321114475,1711900317000,-531.25,0.0005589,120]
[321114476,1711900317009,-500.0,0.0005589,30]
[321114477,1711900317018,-151.0,0.0005589,120]
[321114478,1711900317028,-543.59,0.0005589,120]
[321114479,1711900317038,-500.0,0.0005589,120]
[321114480,1711900317048,-151.0,0.0005589,120]
[321114481,1711900317057,-500.0,0.0005589,120]
[321114482,1711900317067,-761.88,0.0005589,120]
[321114483,1711900317077,-500.0,0.0005589,120]
[321114484,1711900317087,-500.0,0.0005589,120]
[321114485,1711900317098,-711.25,0.0005589,120]
[321114486,1711900317107,-582.64426867,0.0005589,120]
[321114487,1711900317117,-646.54,0.0005589,120]
[321114488,1711900317127,-509.78841054,0.0005589,120]
[321114489,1711900317136,-306.328758,0.0005589,120]
[321114490,1711900317146,-1048.22,0.0005589,120]
[321114491,1711900317156,-500.0,0.0005589,120]
[321114492,1711900317166,-500.0,0.0005589,120]
[321114493,1711900317175,-306.328758,0.0005589,120]
[321114494,1711900317185,-500.0,0.0005589,120]
[321114495,1711900317195,-500.0,0.0005589,120]
[321114496,1711900317205,-500.0,0.0005589,120]
[321114497,1711900317215,-500.0,0.0005589,120]
[321114498,1711900317224,-500.0,0.0005589,120]
[321114499,1711900317233,-844.59,0.0005589,120]
[321114500,1711900317244,-519.79,0.0005589,120]
[321114501,1711900317254,-729.88,0.0005589,120]
[321114502,1711900317264,-539.07,0.0005589,120]
[321114503,1711900317277,-915.41,0.0005589,120]
[321114504,1711900317287,-500.0,0.0005589,120]
[321114505,1711900317296,-500.0,0.0005589,120]
[321114506,1711900317306,-500.0,0.0005589,120]
[321114507,1711900317315,-500.0,0.0005589,120]
[321114508,1711900317326,-500.0,0.0005589,120]
[321114509,1711900317334,-771.12,0.0005589,120]
[321114510,1711900317345,-500.0,0.0005589,120]
[321114511,1711900317356,-500.0,0.0005589,120]
[321114512,1711900317366,-500.0,0.0005589,120]
[321114513,1711900317375,-284.56986127,0.0005589,120]
[321114514,1711900317385,-500.0,0.0005589,120]
[321114515,1711900317394,-544.62,0.0005589,120]
[321114516,1711900317405,-618.81,0.0005589,120]
[321114517,1711900317416,-560.35,0.0005589,120]
[321114518,1711900317426,-521.56965891,0.0005589,120]
[321114519,1711900317435,-500.0,0.0005589,120]
[321114520,1711900317445,-500.0,0.0005589,120]
[321114521,1711900317454,-500.0,0.0005589,120]
[321114522,1711900317464,-500.0,0.0005589,120]
[321114523,1711900317473,-603.47995227,0.0005589,120]
[321114524,1711900317482,-500.0,0.0005589,120]
[321114525,1711900317492,-511.70642952,0.0005589,120]
[321114526,1711900317501,-529.61968362,0.0005589,120]
[321114527,1711900317511,-500.0,0.0005589,120]
[321114528,1711900317521,-500.0,0.0005589,120]
[321114529,1711900317531,-500.0,0.0005589,120]
[321114530,1711900317540,-500.0,0.0005589,120]
[321114531,1711900317549,-500.0,0.0005589,120]
[321114532,1711900317558,-629.01411009,0.0005589,120]
[321114533,1711900317568,-151.0,0.0005589,120]
[321114534,1711900317577,-500.0,0.0005589,120]
[321114535,1711900317587,-860.0,0.0005589,120]
[321114536,1711900317596,-500.0,0.0005589,120]
[321114537,1711900317605,-500.0,0.0005589,120]
[321114538,1711900317615,-500.0,0.0005589,120]
[321114539,1711900317625,-500.0,0.0005589,120]
[321114540,1711900317634,-500.0,0.0005589,120]
[321114541,1711900317644,-500.0,0.0005589,120]
[321114542,1711900317653,-881.22,0.0005589,120]
[321114543,1711900317662,-500.0,0.0005589,120]
[321114544,1711900317672,-500.0,0.0005589,120]
[321114545,1711900317682,-500.0,0.0005589,120]
[321114546,1711900317690,-500.0,0.0005589,120]
[321114547,1711900317699,-644.32,0.0005589,120]
[321114548,1711900317709,-500.0,0.0005589,120]
[321114549,1711900317719,-500.0,0.0005589,120]
[321114550,1711900317728,-500.0,0.0005589,120]
[321114551,1711900317737,-500.0,0.0005589,120]
[321114552,1711900317748,-500.0,0.0005589,120]
[321114553,1711900317757,-500.0,0.0005589,120]
[321114554,1711900317767,-500.0,0.0005589,120]
[321114555,1711900317776,-500.0,0.0005589,120]
[321114556,1711900317786,-500.0,0.0005589,120]
[321114557,1711900317796,-510.20963004,0.0005589,120]
[321114558,1711900317805,-500.0,0.0005589,120]
[321114559,1711900317816,-1276.69,0.0005589,120]
[321114560,1711900317827,-500.0,0.0005589,120]
[321114561,1711900317838,-500.0,0.0005589,120]
[321114562,1711900317848,-500.0,0.0005589,120]
[321114563,1711900317857,-500.0,0.0005589,120]
[321114564,1711900317868,-500.0,0.0005589,120]
[321114565,1711900317877,-500.0,0.0005589,120]
[321114566,1711900317887,-500.0,0.0005589,120]
[321114567,1711900317897,-500.0,0.0005589,120]
[321114568,1711900317907,-500.0,0.0005589,120]
[321114569,1711900317916,-500.0,0.0005589,120]
[321114570,1711900317926,-500.0,0.0005589,120]
[321114571,1711900317936,-330.97915731,0.0005589,120]
[321114572,1711900317947,-500.0,0.0005589,120]
[321114573,1711900317956,-151.0,0.0005589,120]
[321114574,1711900317969,-500.0,0.0005589,120]
[321114575,1711900317979,-500.0,0.0005589,120]
[321114576,1711900317990,-500.0,0.0005589,120]
[321114577,1711900318002,-500.0,0.0005589,120]
[321114578,1711900318012,-151.0,0.0005589,120]
[321114579,1711900318023,-500.0,0.0005589,120]
[321114580,1711900318034,-500.0,0.0005589,120]
[321114581,1711900318044,-151.0,0.0005589,120]
[321114582,1711900318054,-500.0,0.0005589,120]
[321114583,1711900318064,-500.0,0.0005589,120]
[321114584,1711900318075,-259.83,0.0005589,120]
[321114585,1711900318086,-500.0,0.0005589,120]
[321114586,1711900318096,-545.06,0.0005589,120]
[321114587,1711900318106,-554.91,0.0005589,120]
[321114588,1711900318116,-500.0,0.0005589,120]
[321114589,1711900318126,-500.0,0.0005589,120]
[321114590,1711900318136,-500.0,0.0005589,120]
[321114591,1711900318146,-500.0,0.0005589,120]
[321114592,1711900318156,-500.0,0.0005589,120]
[321114593,1711900318166,-151.0,0.0005589,120]
[321114594,1711900318175,-688.34,0.0005589,120]
[321114595,1711900318186,-1281.67,0.0005589,120]
[321114596,1711900318196,-500.0,0.0005589,120]
[321114597,1711900318205,-500.0,0.0005589,120]
[321114598,1711900318215,-500.0,0.0005589,120]
[321114599,1711900318225,-512.50074871,0.0005589,120]
[321114600,1711900318236,-1988.35,0.0005589,120]
[321114601,1711900318246,-500.0,0.0005589,120]
[321114602,1711900318255,-151.0,0.0005589,120]
[321114603,1711900318268,-500.0,0.0005589,120]
[321114604,1711900318279,-500.0,0.0005589,120]
[321114605,1711900318290,-500.0,0.0005589,120]
[321114606,1711900318300,-555.54,0.0005589,120]
[321114607,1711900318310,-500.0,0.0005589,120]
[321114608,1711900318321,-4923.54,0.0005589,120]
[321114609,1711900318331,-593.25,0.0005589,120]
[321114610,1711900318341,-500.0,0.0005589,120]
[321114611,1711900318355,-500.0,0.0005589,120]
[321114612,1711900318364,-1037.57,0.0005589,120]
[321114613,1711900318375,-500.0,0.0005589,120]
[321114614,1711900318384,-514.7631276,0.0005589,120]
[321114615,1711900318394,-500.0,0.0005589,120]
[321114617,1711900318404,-1959.37,0.0005589,120]
[321114618,1711900318415,-155.369584,0.0005589,120]
[321114619,1711900318425,-500.0,0.0005589,120]
[321114620,1711900318435,-500.0,0.0005589,120]
[321114621,1711900318445,-500.0,0.0005589,120]
[321114622,1711900318455,-151.0,0.0005589,120]
[321114623,1711900318465,-507.1,0.0005589,120]
[321114624,1711900318474,-973.96,0.0005589,120]
[321114625,1711900318484,-17432.97,0.0005589,120]
[321114626,1711900318493,-155.369584,0.0005589,120]
[321114627,1711900318503,-500.0,0.0005589,120]
[321114628,1711900318512,-500.0,0.0005589,120]
[321114629,1711900318521,-575.53,0.0005589,120]
[321114630,1711900318530,-500.0,0.0005589,120]
[321114631,1711900318539,-836.36,0.0005589,120]
[321114632,1711900318550,-664.02,0.0005589,120]
[321114633,1711900318559,-4982.73,0.0005589,120]
[321114634,1711900318569,-500.0,0.0005589,120]
[321114635,1711900318579,-500.0,0.0005589,120]
[321114636,1711900318588,-1206.53,0.0005589,120]
[321114637,1711900318599,-2111.34,0.0005589,120]
[321114638,1711900318608,-561.13,0.0005589,120]
[321114639,1711900318617,-452.21032924,0.0005589,120]
[321114640,1711900318627,-535.14,0.0005589,120]
[321114641,1711900318638,-528.46611601,0.0005589,120]
[321114642,1711900318648,-500.0,0.0005589,120]
[321114643,1711900318657,-500.0,0.0005589,120]
[321114644,1711900318667,-35203.05,0.0005589,120]
[321114645,1711900318677,-500.0,0.0005589,120]
[321114646,1711900318687,-500.0,0.0005589,120]
[321114647,1711900318697,-500.0,0.0005589,120]
[321114648,1711900318706,-500.0,0.0005589,120]
[321114649,1711900318716,-500.0,0.0005589,120]
[321114650,1711900318726,-151.0,0.0005589,120]
[321114651,1711900318736,-20306.49,0.0005589,120]
[321114652,1711900318746,-500.0,0.0005589,120]
[321114653,1711900318756,-500.0,0.0005589,120]
[321114654,1711900318767,-2426.71,0.0005589,120]
[321114655,1711900318776,-500.0,0.0005589,120]
[321114656,1711900318786,-500.0,0.0005589,120]
[321114657,1711900318796,-151.0,0.0005589,120]
[321114658,1711900318806,-3158.99,0.0005589,120]
[321114659,1711900318816,-500.0,0.0005589,120]
[321114660,1711900318825,-500.0,0.0005589,120]
[321114661,1711900318836,-6583.66,0.0005589,120]
[321114662,1711900318846,-550.6,0.0005589,120]
[321114663,1711900318856,-500.0,0.0005589,120]
[321114664,1711900318867,-500.0,0.0005589,120]
[321114665,1711900318877,-500.0,0.0005589,120]
[321114666,1711900318887,-500.0,0.0005589,120]
[321114667,1711900318897,-4743.47,0.0005589,120]
[321114668,1711900318907,-649.91,0.0005589,120]
[321114669,1711900318917,-500.0,0.0005589,120]
[321114670,1711900318927,-500.0,0.0005589,120]
[321114671,1711900318937,-151.0,0.0005589,120]
[321114672,1711900318946,-500.0,0.0005589,120]
[321114673,1711900318956,-1008.94,0.0005589,120]
[321114674,1711900318966,-1501.81,0.0005589,120]
[321114675,1711900318976,-500.0,0.0005589,120]
[321114676,1711900318986,-500.0,0.0005589,120]
[321114677,1711900318997,-500.0,0.0005589,120]
[321114678,1711900319006,-500.0,0.0005589,120]
[321114679,1711900319016,-7272.15,0.0005589,120]
[321114680,1711900319027,-500.0,0.0005589,120]
[321114681,1711900319038,-500.0,0.0005589,120]
[321114682,1711900319048,-1951.74,0.0005589,120]
[321114683,1711900319057,-500.0,0.0005589,120]
[321114684,1711900319068,-1708.51,0.0005589,120]
[321114685,1711900319077,-2213.16,0.0005589,120]
[321114686,1711900319088,-500.0,0.0005589,120]
[321114687,1711900319098,-516.3,0.0005589,120]
[321114688,1711900319107,-830.035408,0.0005589,120]
[321114689,1711900319117,-500.0,0.0005589,120]
[321114690,1711900319127,-706.06,0.0005589,120]
[321114691,1711900319137,-500.0,0.0005589,120]
[321114692,1711900319146,-500.0,0.0005589,120]
[321114693,1711900319155,-151.0,0.0005589,120]
[321114694,1711900319164,-500.0,0.0005589,120]
[321114695,1711900319174,-4238.83,0.0005589,120]
[321114696,1711900319183,-500.0,0.0005589,120]
[321114697,1711900319192,-1070.8,0.0005589,120]
[321114698,1711900319202,-1153.73,0.0005589,120]
[321114699,1711900319211,-830.035408,0.0005589,120]
[321114700,1711900319220,-500.0,0.0005589,120]
[321114701,1711900319230,-506.91,0.0005589,120]
[321114702,1711900319424,-500.0,0.0005589,120]
[321114703,1711900319434,-500.0,0.0005589,120]
[321114704,1711900319443,-500.0,0.0005589,120]
[321114705,1711900319453,-11263.13,0.0005589,120]
[321114706,1711900319462,-500.0,0.0005589,120]
[321114707,1711900319471,-500.0,0.0005589,120]
[321114708,1711900319480,-500.0,0.0005589,120]
[321114709,1711900319492,-500.0,0.0005589,120]
[321114710,1711900319502,-500.0,0.0005589,120]
[321114711,1711900319512,-6135.58,0.0005589,120]
[321114712,1711900319521,-500.0,0.0005589,120]
[321114713,1711900319532,-1063.3,0.0005589,120]
[321114714,1711900319541,-500.0,0.0005589,120]
[321114715,1711900319550,-1083.6,0.0005589,120]
[321114716,1711900319560,-344.55236571,0.0005589,120]